[Event "NJSK 2018 Jeugd C"]
[Site "Assen, Netherlands"]
[Date "2018.04.29"]
[Round "1.5"]
[White "Labruyere, Roger"]
[Black "Nguyen, Lucas"]
[Result "1/2-1/2"]
[TimeControl "40/90m+30sec/move"]
[WhiteElo "1665"]
[BlackElo "1919"]

1. d4 {[%clk 01:30:59]} d5 {[%clk 01:30:50]} {[%emt 00:00:13]} 2. Bf4 {[%clk
01:31:15]} {[%emt 00:00:12]} Nf6 {[%clk 01:30:38]} {[%emt 00:00:41]} 3. Nf3
{[%clk 01:31:32]} {[%emt 00:00:13]} e6 {[%clk 01:30:15]} {[%emt 00:00:53]} 4.
e3 {[%clk 01:31:54]} {[%emt 00:00:08]} Nbd7 {[%clk 01:29:57]} {[%emt 00:00:48]}
5. Nbd2 {[%clk 01:32:05]} {[%emt 00:00:19]} Be7 {[%clk 01:26:57]} {[%emt
00:03:30]} 6. Bd3 {[%clk 01:32:26]} {[%emt 00:00:09]} a6 {[%clk 01:26:10]}
{[%emt 00:01:17]} 7. h3 {[%clk 01:32:03]} {[%emt 00:00:53]} c5 {[%clk
01:16:45]} {[%emt 00:09:56]} 8. c3 {[%clk 01:32:22]} {[%emt 00:00:11]} b5
{[%clk 01:16:31]} {[%emt 00:00:44]} 9. O-O {[%clk 01:32:11]} {[%emt 00:00:41]}
O-O {[%clk 01:16:19]} {[%emt 00:00:42]} 10. Re1 {[%clk 01:31:47]} {[%emt
00:00:53]} c4 {[%clk 01:14:57]} {[%emt 00:01:54]} 11. Bc2 {[%clk 01:32:05]}
{[%emt 00:00:11]} a5 {[%clk 01:14:22]} {[%emt 00:01:05]} 12. Qe2 {[%clk
01:29:26]} {[%emt 00:03:08]} b4 {[%clk 01:10:47]} {[%emt 00:04:07]} 13. Bh2
{[%clk 01:28:59]} {[%emt 00:00:57]} a4 {[%clk 01:09:37]} {[%emt 00:01:41]} 14.
e4 {[%clk 01:28:24]} {[%emt 00:00:35]} a3 {[%clk 01:08:05]} {[%emt 00:02:03]}
15. Rab1 {[%clk 01:22:55]} {[%emt 00:06:28]} axb2 {[%clk 01:06:05]} {[%emt
00:02:30]} 16. cxb4 {[%clk 01:21:06]} {[%emt 00:02:19]} c3 {[%clk 01:00:35]}
{[%emt 00:06:00]} 17. exd5 {[%clk 00:54:07]} {[%emt 00:27:29]} cxd2 {[%clk
00:58:04]} {[%emt 00:03:00]} 18. Qxd2 {[%clk 00:54:28]} {[%emt 00:00:07]} Nxd5
{[%clk 00:57:33]} {[%emt 00:01:03]} 19. Rxb2 {[%clk 00:52:41]} {[%emt
00:02:18]} Qb6 {[%clk 00:52:32]} {[%emt 00:05:30]} 20. Qd3 {[%clk 00:51:02]}
{[%emt 00:02:09]} f5 {[%clk 00:49:44]} {[%emt 00:03:18]} 21. a3 {[%clk
00:51:09]} {[%emt 00:00:24]} Qa6 {[%clk 00:37:28]} {[%emt 00:12:46]} 22. Qxa6
{[%clk 00:49:50]} {[%emt 00:01:48]} Rxa6 {[%clk 00:37:33]} {[%emt 00:00:25]} 23.
Bb3 {[%clk 00:48:59]} {[%emt 00:01:21]} N7b6 {[%clk 00:33:57]} {[%emt
00:04:07]} 24. Ra2 {[%clk 00:36:24]} {[%emt 00:13:02]} Nc3 {[%clk 00:29:12]}
{[%emt 00:05:18]} 25. Rc2 {[%clk 00:34:52]} {[%emt 00:02:01]} Nbd5 {[%clk
00:27:59]} {[%emt 00:01:43]} 26. Rec1 {[%clk 00:31:33]} {[%emt 00:03:49]} Bd7
{[%clk 00:24:28]} {[%emt 00:04:01]} 27. Ne5 {[%clk 00:19:47]} {[%emt 00:12:16]}
Ba4 {[%clk 00:22:54]} {[%emt 00:02:04]} 28. Rxc3 {[%clk 00:19:20]} {[%emt
00:00:57]} Nxc3 {[%clk 00:23:15]} {[%emt 00:00:09]} 29. Rxc3 {[%clk 00:19:48]}
{[%emt 00:00:01]} Bxb3 {[%clk 00:23:36]} {[%emt 00:00:09]} 30. Rxb3 {[%clk
00:19:53]} {[%emt 00:00:26]} Rfa8 {[%clk 00:24:00]} {[%emt 00:00:05]} 31. Bf4
{[%clk 00:09:29]} {[%emt 00:10:54]} Rxa3 {[%clk 00:23:04]} {[%emt 00:01:27]} 32.
Rxa3 {[%clk 00:09:16]} {[%emt 00:00:43]} Rxa3 {[%clk 00:23:33]} {[%emt
00:00:01]} 33. Nc6 {[%clk 00:09:29]} {[%emt 00:00:16]} Bf6 {[%clk 00:23:29]}
{[%emt 00:00:35]} 34. Be5 {[%clk 00:08:45]} {[%emt 00:01:14]} Bxe5 {[%clk
00:23:06]} {[%emt 00:00:53]} 35. dxe5 {[%clk 00:09:04]} {[%emt 00:00:12]} Ra1+
{[%clk 00:21:38]} {[%emt 00:01:58]} 36. Kh2 {[%clk 00:09:04]} {[%emt 00:00:29]}
Rb1 {[%clk 00:22:02]} {[%emt 00:00:06]} 37. Nd8 {[%clk 00:09:08]} {[%emt
00:00:26]} Rxb4 {[%clk 00:19:32]} {[%emt 00:02:59]} 38. Nxe6 {[%clk 00:09:34]}
{[%emt 00:00:05]} Kf7 {[%clk 00:19:17]} {[%emt 00:00:45]} 39. Nd8+ {[%clk
00:08:56]} {[%emt 00:01:08]} Ke8 {[%clk 00:18:02]} {[%emt 00:01:44]} 40. Ne6
{[%clk 00:09:21]} {[%emt 00:00:05]} g6 {[%clk 00:18:03]} {[%emt 00:00:29]} 41.
Nc7+ {[%clk 00:07:15]} {[%emt 00:02:36]} Kd7 {[%clk 00:14:57]} {[%emt
00:03:36]} 42. Nd5 {[%clk 00:07:25]} {[%emt 00:00:21]} Rd4 {[%clk 00:14:34]}
{[%emt 00:00:52]} 43. Nf6+ {[%clk 00:07:26]} {[%emt 00:00:29]} Ke6 {[%clk
00:14:49]} {[%emt 00:00:15]} 44. Nxh7 {[%clk 00:07:48]} {[%emt 00:00:08]} Kxe5
{[%clk 00:14:48]} {[%emt 00:00:31]} 45. Ng5 {[%clk 00:08:12]} {[%emt 00:00:05]}
Ra4 {[%clk 00:14:09]} {[%emt 00:01:09]} 46. g3 {[%clk 00:06:07]} {[%emt
00:02:35]} f4 {[%clk 00:11:42]} {[%emt 00:02:57]} 47. g4 {[%clk 00:04:06]}
{[%emt 00:02:31]} Kd4 {[%clk 00:10:38]} {[%emt 00:01:34]} 48. Nf3+ {[%clk
00:04:16]} {[%emt 00:00:21]} Kd3 {[%clk 00:07:51]} {[%emt 00:03:17]} 49. Kg2
{[%clk 00:04:03]} {[%emt 00:00:42]} Ke2 {[%clk 00:08:04]} {[%emt 00:00:18]} 50.
Ng1+ {[%clk 00:03:49]} {[%emt 00:00:44]} Kd3 {[%clk 00:08:00]} {[%emt
00:00:33]} 51. Nf3 {[%clk 00:04:13]} {[%emt 00:00:05]} Ra5 {[%clk 00:07:52]}
{[%emt 00:00:38]} 52. h4 {[%clk 00:04:21]} {[%emt 00:00:22]} Rb5 {[%clk
00:07:22]} {[%emt 00:01:01]} 53. Ne1+ {[%clk 00:04:16]} {[%emt 00:00:35]} Ke4
{[%clk 00:07:13]} {[%emt 00:00:36]} 54. Nf3 {[%clk 00:04:08]} {[%emt 00:00:40]}
Rb8 {[%clk 00:05:34]} {[%emt 00:02:08]} 55. Ng5+ {[%clk 00:04:14]} {[%emt
00:00:25]} Ke5 {[%clk 00:05:56]} {[%emt 00:00:07]} 56. Nf3+ {[%clk 00:04:40]}
{[%emt 00:00:06]} Kf6 {[%clk 00:06:17]} {[%emt 00:00:10]} 57. Kh2 {[%clk
00:04:28]} {[%emt 00:00:42]} Rb3 {[%clk 00:05:02]} {[%emt 00:01:44]} 58. Kg2
{[%clk 00:04:49]} {[%emt 00:00:09]} Ra3 {[%clk 00:04:32]} {[%emt 00:01:00]} 59.
Nd2 {[%clk 00:04:33]} {[%emt 00:00:45]} Kg7 {[%clk 00:03:54]} {[%emt 00:01:09]}
60. Nf3 {[%clk 00:03:58]} {[%emt 00:01:04]} Kh6 {[%clk 00:03:40]} {[%emt
00:00:44]} 61. Nd2 {[%clk 00:03:48]} {[%emt 00:00:39]} Kg7 {[%clk 00:02:25]}
{[%emt 00:01:46]} 62. Nf3 {[%clk 00:04:10]} {[%emt 00:00:08]} Kh7 {[%clk
00:02:39]} {[%emt 00:00:17]} 63. Ng5 {[%clk 00:04:30]} {[%emt 00:00:10]} Kh6
{[%clk 00:02:31]} {[%emt 00:00:39]} 1/2-1/2

[Event "NJSK 2018 Jeugd C"]
[Site "Assen, Netherlands"]
[Date "2018.04.29"]
[Round "1.6"]
[White "Kutchoukov, Daniel"]
[Black "Van der Schaaf, Tristan"]
[Result "1-0"]
[TimeControl "40/90m+30sec/move"]
[WhiteElo "1902"]
[BlackElo "1647"]

1. e4 {[%clk 01:30:59]} c6 {[%clk 01:30:59]} {[%emt 00:00:02]} 2. d4 {[%clk
01:31:25]} {[%emt 00:00:04]} d5 {[%clk 01:31:24]} {[%emt 00:00:06]} 3. e5
{[%clk 01:31:52]} {[%emt 00:00:04]} Bf5 {[%clk 01:31:49]} {[%emt 00:00:04]} 4.
h4 {[%clk 01:32:19]} {[%emt 00:00:02]} a6 {[%clk 01:32:13]} {[%emt 00:00:08]} 5.
g4 {[%clk 01:20:20]} {[%emt 00:12:25]} Bd7 {[%clk 01:32:31]} {[%emt 00:00:11]}
6. f4 {[%clk 01:13:12]} {[%emt 00:07:39]} e6 {[%clk 01:29:41]} {[%emt
00:03:20]} 7. h5 {[%clk 01:13:34]} {[%emt 00:00:08]} Qc8 {[%clk 01:18:59]}
{[%emt 00:11:11]} 8. Bd3 {[%clk 01:10:20]} {[%emt 00:03:45]} c5 {[%clk
01:11:59]} {[%emt 00:07:30]} 9. c3 {[%clk 01:05:10]} {[%emt 00:05:39]} Nc6
{[%clk 01:05:56]} {[%emt 00:06:34]} 10. Ne2 {[%clk 00:57:52]} {[%emt 00:07:48]}
b5 {[%clk 00:56:56]} {[%emt 00:09:30]} 11. O-O {[%clk 00:50:55]} {[%emt
00:07:27]} cxd4 {[%clk 00:49:40]} {[%emt 00:07:46]} 12. Nxd4 {[%clk 00:43:17]}
{[%emt 00:08:08]} Bc5 {[%clk 00:44:47]} {[%emt 00:05:23]} 13. Be3 {[%clk
00:42:34]} {[%emt 00:01:12]} Nge7 {[%clk 00:42:35]} {[%emt 00:02:44]} 14. Nd2
{[%clk 00:38:47]} {[%emt 00:04:18]} g6 {[%clk 00:32:37]} {[%emt 00:10:28]} 15.
h6 {[%clk 00:05:23]} {[%emt 00:33:54]} Rg8 {[%clk 00:19:46]} {[%emt 00:13:20]}
16. N2f3 {[%clk 00:04:58]} {[%emt 00:00:55]} Rh8 {[%clk 00:15:10]} {[%emt
00:05:06]} 17. Qe2 {[%clk 00:04:26]} {[%emt 00:01:02]} Ng8 {[%clk 00:13:55]}
{[%emt 00:01:45]} 18. f5 {[%clk 00:04:05]} {[%emt 00:00:51]} gxf5 {[%clk
00:11:31]} {[%emt 00:02:54]} 19. gxf5 {[%clk 00:04:26]} {[%emt 00:00:10]} exf5
{[%clk 00:11:01]} {[%emt 00:01:00]} 20. Nh4 {[%clk 00:00:54]} {[%emt 00:04:02]}
Nxe5 {[%clk 00:08:14]} {[%emt 00:03:17]} 21. Bf4 {[%clk 00:01:11]} {[%emt
00:00:11]} Ne7 {[%clk 00:06:14]} {[%emt 00:02:32]} 22. Bxe5 {[%clk 00:01:06]}
{[%emt 00:00:35]} Rg8+ {[%clk 00:05:53]} {[%emt 00:00:51]} 23. Kh1 {[%clk
00:01:24]} {[%emt 00:00:11]} Bxd4 {[%clk 00:03:57]} {[%emt 00:02:26]} 24. cxd4
{[%clk 00:01:21]} {[%emt 00:00:33]} Rg4 {[%clk 00:02:46]} {[%emt 00:01:41]} 25.
Bf6 {[%clk 00:01:34]} {[%emt 00:00:18]} Be6 {[%clk 00:00:37]} {[%emt 00:02:39]}
26. Bxe7 {[%clk 00:01:34]} {[%emt 00:00:30]} Kxe7 {[%clk 00:00:47]} {[%emt
00:00:20]} 27. Nxf5+ {[%clk 00:02:02]} {[%emt 00:00:02]} 1-0

[Event "NJSK 2018 Jeugd C"]
[Site "Assen, Netherlands"]
[Date "2018.04.29"]
[Round "1.7"]
[White "Catalan, Ciro"]
[Black "Maters, Arthur"]
[Result "1/2-1/2"]
[TimeControl "40/90m+30sec/move"]
[WhiteElo "1503"]
[BlackElo "1895"]

1. d4 {[%clk 01:30:58]} {[%emt 00:00:03]} f5 {[%clk 01:30:55]} {[%emt
00:00:06]} 2. c4 {[%clk 01:31:22]} {[%emt 00:00:08]} Nf6 {[%clk 01:31:20]}
{[%emt 00:00:04]} 3. g3 {[%clk 01:31:37]} {[%emt 00:00:14]} e6 {[%clk
01:31:43]} {[%emt 00:00:08]} 4. Nf3 {[%clk 01:31:57]} {[%emt 00:00:07]} d5
{[%clk 01:32:06]} {[%emt 00:00:07]} 5. Bg2 {[%clk 01:32:16]} {[%emt 00:00:10]}
c6 {[%clk 01:32:30]} {[%emt 00:00:08]} 6. O-O {[%clk 01:32:30]} {[%emt
00:00:15]} Bd6 {[%clk 01:32:50]} {[%emt 00:00:10]} 7. Nbd2 {[%clk 01:32:00]}
{[%emt 00:01:00]} O-O {[%clk 01:32:23]} {[%emt 00:00:56]} 8. Qc2 {[%clk
01:32:20]} {[%emt 00:00:10]} Bd7 {[%clk 01:31:10]} {[%emt 00:01:44]} 9. Ne5
{[%clk 01:25:52]} {[%emt 00:06:58]} Be8 {[%clk 01:30:34]} {[%emt 00:01:06]} 10.
Ndf3 {[%clk 01:23:54]} {[%emt 00:02:27]} Bh5 {[%clk 01:28:37]} {[%emt
00:02:26]} 11. Re1 {[%clk 01:11:54]} {[%emt 00:12:31]} Nbd7 {[%clk 01:13:16]}
{[%emt 00:15:51]} 12. Qb3 {[%clk 00:54:44]} {[%emt 00:17:39]} Rb8 {[%clk
01:07:18]} {[%emt 00:06:28]} 13. Bd2 {[%clk 00:49:42]} {[%emt 00:05:32]} Qe7
{[%clk 00:54:49]} {[%emt 00:12:59]} 14. Rac1 {[%clk 00:33:04]} {[%emt
00:17:08]} Ne4 {[%clk 00:51:46]} {[%emt 00:03:33]} 15. Nxd7 {[%clk 00:26:56]}
{[%emt 00:06:37]} Qxd7 {[%clk 00:41:41]} {[%emt 00:10:35]} 16. Bb4 {[%clk
00:21:42]} {[%emt 00:05:43]} Bxb4 {[%clk 00:28:35]} {[%emt 00:13:36]} 17. Qxb4
{[%clk 00:20:15]} {[%emt 00:01:58]} Bxf3 {[%clk 00:22:43]} {[%emt 00:06:22]} 18.
Bxf3 {[%clk 00:17:15]} {[%emt 00:03:31]} f4 {[%clk 00:16:50]} {[%emt 00:06:23]}
19. Kg2 {[%clk 00:13:23]} {[%emt 00:04:21]} Ng5 {[%clk 00:15:16]} {[%emt
00:02:04]} 20. Qc3 {[%clk 00:08:51]} {[%emt 00:05:01]} Rf6 {[%clk 00:12:08]}
{[%emt 00:03:38]} 21. h4 {[%clk 00:06:45]} {[%emt 00:02:36]} Nxf3 {[%clk
00:09:08]} {[%emt 00:03:30]} 22. exf3 {[%clk 00:07:12]} {[%emt 00:00:03]} Qf7
{[%clk 00:09:10]} {[%emt 00:00:28]} 23. cxd5 {[%clk 00:06:44]} {[%emt
00:00:58]} exd5 {[%clk 00:09:14]} {[%emt 00:00:25]} 24. Qd3 {[%clk 00:06:29]}
{[%emt 00:00:45]} Rf8 {[%clk 00:08:29]} {[%emt 00:01:15]} 25. Rc3 {[%clk
00:06:36]} {[%emt 00:00:23]} Qc7 {[%clk 00:07:59]} {[%emt 00:01:00]} 26. Qe2
{[%clk 00:06:28]} {[%emt 00:00:38]} Qf7 {[%clk 00:05:18]} {[%emt 00:03:12]} 27.
Rb3 {[%clk 00:06:18]} {[%emt 00:00:40]} b6 {[%clk 00:05:35]} {[%emt 00:00:13]}
28. Qd3 {[%clk 00:06:21]} {[%emt 00:00:26]} c5 {[%clk 00:05:35]} {[%emt
00:00:31]} 29. dxc5 {[%clk 00:06:04]} {[%emt 00:00:47]} bxc5 {[%clk 00:06:00]}
{[%emt 00:00:05]} 30. Ra3 {[%clk 00:06:12]} {[%emt 00:00:22]} c4 {[%clk
00:06:08]} {[%emt 00:00:22]} 31. Qd1 {[%clk 00:06:16]} {[%emt 00:00:25]} Qb7
{[%clk 00:04:22]} {[%emt 00:02:15]} 32. Qd2 {[%clk 00:05:55]} {[%emt 00:00:50]}
d4 {[%clk 00:03:44]} {[%emt 00:01:09]} 33. Qxd4 {[%clk 00:05:19]} {[%emt
00:01:06]} fxg3 {[%clk 00:04:09]} {[%emt 00:00:05]} 34. Ree3 {[%clk 00:04:02]}
{[%emt 00:01:47]} gxf2 {[%clk 00:03:51]} {[%emt 00:00:49]} 35. Kxf2 {[%clk
00:04:17]} {[%emt 00:00:14]} Qb6 {[%clk 00:02:59]} {[%emt 00:01:22]} 36. Qxb6
{[%clk 00:02:39]} {[%emt 00:02:08]} axb6 {[%clk 00:03:23]} {[%emt 00:00:07]} 37.
Ra7 {[%clk 00:02:33]} {[%emt 00:00:36]} R6f7 {[%clk 00:03:29]} {[%emt
00:00:24]} 38. Rea3 {[%clk 00:01:38]} {[%emt 00:01:23]} Rd8 {[%clk 00:03:10]}
{[%emt 00:00:49]} 39. Ke3 {[%clk 00:01:36]} {[%emt 00:00:32]} Rxa7 {[%clk
00:01:56]} {[%emt 00:01:45]} 40. Rxa7 {[%clk 00:02:00]} {[%emt 00:00:06]} Rd3+
{[%clk 00:02:25]} {[%emt 00:00:01]} 41. Ke2 {[%clk 00:02:13]} {[%emt 00:00:18]}
Rd6 {[%clk 00:02:36]} {[%emt 00:00:18]} 42. Rc7 {[%clk 00:02:13]} {[%emt
00:00:30]} b5 {[%clk 00:02:49]} {[%emt 00:00:17]} 43. Rb7 {[%clk 00:02:20]}
{[%emt 00:00:22]} Rd5 {[%clk 00:03:10]} {[%emt 00:00:09]} 44. Ke3 {[%clk
00:02:27]} {[%emt 00:00:22]} Rh5 {[%clk 00:03:11]} {[%emt 00:00:31]} 45. a3
{[%clk 00:02:22]} {[%emt 00:00:35]} Kf8 {[%clk 00:02:34]} {[%emt 00:01:06]} 46.
Kf2 {[%clk 00:02:13]} {[%emt 00:00:39]} Rc5 {[%clk 00:02:20]} {[%emt 00:00:45]}
47. Ke2 {[%clk 00:02:05]} {[%emt 00:00:37]} c3 {[%clk 00:02:07]} {[%emt
00:00:42]} 48. bxc3 {[%clk 00:01:45]} {[%emt 00:00:50]} Rxc3 {[%clk 00:02:34]}
{[%emt 00:00:04]} 49. Rxb5 {[%clk 00:02:03]} {[%emt 00:00:13]} Rxa3 {[%clk
00:03:01]} {[%emt 00:00:03]} 50. Kf2 {[%clk 00:02:13]} {[%emt 00:00:19]} Kf7
{[%clk 00:03:12]} {[%emt 00:00:20]} 51. Rb6 {[%clk 00:02:22]} {[%emt 00:00:21]}
Ra2+ {[%clk 00:03:28]} {[%emt 00:00:13]} 52. Kg3 {[%clk 00:02:36]} {[%emt
00:00:16]} Re2 {[%clk 00:03:54]} {[%emt 00:00:04]} 53. Kf4 {[%clk 00:02:28]}
{[%emt 00:00:38]} Re6 {[%clk 08:03:26]} {[%emt 00:00:58]} 54. Rb5 {[%clk
00:01:06]} {[%emt 00:01:52]} Rd6 {[%clk 00:02:01]} {[%emt 00:01:55]} 55. Ra5
{[%clk 00:01:00]} {[%emt 00:00:36]} Re6 {[%clk 00:01:45]} {[%emt 00:00:45]} 56.
Kg4 {[%clk 00:00:54]} {[%emt 00:00:36]} Re1 {[%clk 00:01:46]} {[%emt 00:00:29]}
57. Ra6 {[%clk 00:00:59]} {[%emt 00:00:25]} Rg1+ {[%clk 00:01:54]} {[%emt
00:00:22]} 58. Kf4 {[%clk 00:01:10]} {[%emt 00:00:19]} g6 {[%clk 00:01:49]}
{[%emt 00:00:35]} 59. Ra7+ {[%clk 00:01:16]} {[%emt 00:00:24]} Kg8 {[%clk
00:01:52]} {[%emt 00:00:27]} 60. Rb7 {[%clk 00:01:23]} {[%emt 00:00:24]} Ra1
{[%clk 00:02:05]} {[%emt 00:00:16]} 61. Kg5 {[%clk 00:01:23]} {[%emt 00:00:30]}
Ra5+ {[%clk 00:02:30]} {[%emt 00:00:05]} 62. Kg4 {[%clk 00:01:24]} {[%emt
00:00:30]} Rf5 {[%clk 00:02:35]} {[%emt 00:00:25]} 63. Rc7 {[%clk 00:01:23]}
{[%emt 00:00:30]} Rf7 {[%clk 00:02:26]} {[%emt 00:00:40]} 64. Rc6 {[%clk
00:01:09]} {[%emt 00:00:45]} Kg7 {[%clk 00:02:49]} {[%emt 00:00:07]} 65. Rb6
{[%clk 00:01:24]} {[%emt 00:00:14]} Kh6 {[%clk 00:02:47]} {[%emt 00:00:32]} 66.
Rb5 {[%clk 00:01:19]} {[%emt 00:00:36]} Ra7 {[%clk 00:03:08]} {[%emt 00:00:09]}
67. Rc5 {[%clk 00:01:27]} {[%emt 00:00:22]} Kg7 {[%clk 00:02:20]} {[%emt
00:01:17]} 1/2-1/2